Cogmind - Beta 16 @@@ ROGUE MODE // 2026.02.01 @ 06:08:28 Player: luckinvolved Result: Destroyed by IV-YAR(R) with Subdweller Beam Cannon Performance ------------- Evolutions (0) 0 Regions Visited (2) 400 Robots Destroyed (35) 175 Value Destroyed (764) 764 Prototype IDs (0) 0 Alien Tech Used (0) 0 Bonus (0) 0 TOTAL SCORE: 1339 Bonus ------- None Cogmind --------- Core Integrity 0/250 Matter 300/300 Energy 179/200 System Corruption 4% Temperature Cool (9) Movement Rolling (130) Ox2 Location -10/Subcaves Parts ------- > --- POWER (1) -------- Subdweller Power Source > --- PROPULSION (2) --- Light Treads Subdweller Monowheel > --- UTILITY (2) ------ High-capacity Storage Unit > --- WEAPON (2) ------- Subdweller Laser Subdweller Laser > --- INVENTORY (20) --- Ion Engine Ion Engine Ion Engine Light Ion Engine Light Ion Engine Subdweller Power Source Light Nuclear Core Wheel Wheel Compact Wheel Heat Sink Subdweller Optics Signal Interpreter Targeting Computer Medium Laser Beam Cannon Subdweller Machine Gun Grenade Launcher Mining Laser Mining Laser Peak State ------------ > --- POWER ------------ Subdweller Power Source > --- PROPULSION ------- Light Treads Subdweller Monowheel > --- UTILITY ---------- High-capacity Storage Unit > --- WEAPON ----------- Subdweller Laser Subdweller Laser > --- INVENTORY -------- Ion Engine Ion Engine Ion Engine Light Ion Engine Subdweller Power Source Light Nuclear Core Wheel Wheel Compact Wheel Heat Sink Subdweller Optics Signal Interpreter Targeting Computer Medium Laser Beam Cannon Subdweller Machine Gun Grenade Launcher Mining Laser Mining Laser [Rating: 12] Favorites ----------- Power Ion Engine Engine Ion Engine Propulsion Light Treads Treads Light Treads Wheel Subdweller Monowheel Utility High-capacity Storage Unit Device Seismic Detector Storage High-capacity Storage Unit Weapon Medium Laser Energy Gun Medium Laser Build | -11 -10 -10 ------- Run | Yrd Mat Sub Slots Evolved . | . . . Power . | . . . Propulsion . | . . . Utility . | . . . Weapon . | . . . Parts Attached 18 | 8 3 7 Power 4 | 2 . 2 Engine 4 | 2 . 2 Core . | . . . Reactor . | . . . Propulsion 5 | 2 . 3 Treads 3 | 2 . 1 Leg . | . . . Wheel 2 | . . 2 Hover . | . . . Flight . | . . . Utility 3 | 2 1 . Device 1 | 1 . . Storage 2 | 1 1 . Processor . | . . . Hackware . | . . . Protection . | . . . Artifact . | . . . Weapon 6 | 2 2 2 Energy Gun 6 | 2 2 2 Energy Cannon . | . . . Ballistic Gun . | . . . Ballistic Cannon . | . . . Launcher . | . . . Special Weapon . | . . . Impact Weapon . | . . . Slashing Weapon . | . . . Piercing Weapon . | . . . Special Melee Weapon . | . . . Unidentified Prototypes . | . . . Corrupted Parts 1 | . . 1 System Corruption 4 | . . 4 Parts Lost 7 | . 1 6 Power 1 | . . 1 Propulsion 3 | . . 3 Utility 1 | . . 1 Weapon 2 | . 1 1 Highest Loss Streak 3 | . 1 3 To Critical Strikes . | . . . Average Backups 10 | 2 9 18 Power 3 | . 3 5 Propulsion 2 | 1 2 3 Utility 2 | . 1 3 Weapon 2 | . 2 5 Tool/Special . | . . . Unused Backups 17 | . . 17 Power 5 | . . 5 Propulsion 3 | . . 3 Utility 4 | . . 4 Weapon 5 | . . 5 Tool/Special . | . . . Average Slot Usage (%) 95 | . 98 81 Engine 13 | . 13 14 Treads 25 | . 27 14 Wheel 1 | . . 9 Device 12 | . 13 2 Storage 14 | . 14 14 Energy Gun 27 | . 27 27 Peak Build Rating 12 | 7 8 12 Average Rating 7 | 5 7 10 On Entrance 5 | . 7 8 Avg Prop Armor Cover (%) 16 | . . 16 Naked Turns . | . . . Heaviest Build 53 | 14 50 53 Greatest Support 40 | 40 40 40 Greatest Overweight (x) 13 | . 13 5 Average Overweight (x) 1 | . . 2 Largest Inventory Capacity 20 | 8 20 20 Average Capacity 18 | 7 19 20 Most Carried 20 | 4 17 20 Average Carried 10 | 2 9 18 Final Capacity 20 | 8 20 20 Final Carried 20 | 4 17 20 Class Distribution -------------------- 87% | Mutant 12% | Scavenger-Mutant Dominant Class ---------------- Mutant | -10/Materials Scavenger-Mutant | -10/Subcaves Resources | -11 -10 -10 ----------- Run | Yrd Mat Sub Matter Collected 461 | 280 85 96 Remotely . | . . . Salvage Created 1176 | 110 812 254 Parts 89 | 8 62 19 Haulers Intercepted 2 | . 2 . Recyclers Shooed 2 | 1 1 . Parts Field Recycled . | . . . Retrieved Matter . | . . . Parts Self-Destructed 6 | . . 6 Prevented . | . . . Parts Restored . | . . . Kills | -11 -10 -10 ------- Run | Yrd Mat Sub Combat Hostiles Destroyed 21 | . 16 5 Guns 21 | . 16 5 Classes Destroyed 11 | 2 7 2 Worker 3 | . 3 . Builder 1 | . 1 . Tunneler 4 | 2 2 . Hauler 2 | . 2 . Recycler 1 | 1 . . Operator 1 | . 1 . Watcher 2 | . 2 . Swarmer 5 | . 5 . Grunt 11 | . 11 . Artisan 1 | . . 1 Subdweller 5 | . . 5 Best Kill Streak 3 | 3 3 2 Combat Bots Only 3 | . 3 2 Max Kills in Single Turn 1 | 1 1 1 Gunslinging . | . . . Exploded . | . . . Melee . | . . . Uniques/NPCs Destroyed . | . . . Combat | -11 -10 -10 -------- Run | Yrd Mat Sub Hostile Shots Fired 97 | . 59 38 Missed 29 | . 17 12 Hits 68 | . 42 26 Projectile 68 | . 42 26 Critical Strikes 1 | . . 1 Damage Taken 1106 | . 513 593 Core 263 | . 59 204 Absorbed by Shields . | . . . Core Remaining (%) 100 | 100 . . Volleys Fired 95 | 5 66 24 Largest 2 | 2 2 2 Hottest 120 | 80 90 120 Shots Fired 185 | 10 132 43 Gun 185 | 10 132 43 Cannon . | . . . Launcher . | . . . Special . | . . . Kinetic . | . . . Thermal 145 | 5 104 36 Explosive . | . . . Electromagnetic 40 | 5 28 7 Robot Hit Streak 13 | 6 11 13 Robot Miss Streak 5 | 1 5 2 Penetration Max . | . . . Secondary Targets . | . . . Shots Hit Robots 128 | 9 82 37 Core Hits 60 | 4 43 13 Critical Kills . | . . . Critical Parts Destroyed . | . . . Critical Strikes 4 | . 4 . Burn 4 | . 4 . Melee Attacks . | . . . Impact . | . . . Slashing . | . . . Piercing . | . . . Sneak Attacks . | . . . Combat Hostiles . | . . . Follow-up Attacks . | . . . Damage Inflicted 1946 | 106 1158 682 Guns 1819 | 106 1031 682 Cannons . | . . . Explosions . | . . . Melee . | . . . Ramming 127 | . 127 . Kinetic . | . . . Thermal 1477 | 53 806 618 Explosive . | . . . Electromagnetic 342 | 53 225 64 Impact . | . . . Slashing . | . . . Piercing . | . . . Highest Corruption 4 | . . 4 Average Corruption 4 | . . 4 Corruption Purged . | . . . Corruption Blocked . | . . . Effects 14 | . . 14 Message Errors 3 | . . 3 Matter Fused 5 | . . 5 Heat Flow Errors 2 | . . 2 Parts Rejected 1 | . . 1 Data Loss (minor) 2 | . . 2 Data Loss (major) 1 | . . 1 Overload Shots . | . . . Overflow Damage . | . . . Projectiles . | . . . Explosions . | . . . Melee . | . . . Knockbacks . | . . . Impact . | . . . Kinetic . | . . . Secondary . | . . . Self-Inflicted Damage 1 | . 1 . Shots . | . . . Rammed 21 | . 21 . Targets Rammed 23 | . 23 . Kicked . | . . . Crushed 2 | . 2 . Highest Temperature 289 | 54 289 98 Average Temperature 79 | 25 85 38 Received Heat Transfer 366 | . 228 138 Effects 4 | . 4 . Energy Bleed 1 | . 1 . Interference 3 | . 3 . Siege Activations . | . . . Martial Activations . | . . . Shielding Activations . | . . . Robots Disrupted . | . . . Combat Hostiles . | . . . Robots Corrupted . | . . . Combat Hostiles . | . . . Parts Fried 2 | . 2 . Impact Corruptions . | . . . Robots Melted . | . . . Combat Hostiles . | . . . Parts Melted 7 | . 4 3 Heat Transferred 3411 | 125 2487 799 Parts Sabotaged . | . . . Parts Stolen . | . . . Parts Stripped . | . . . Power Chain Reactions . | . . . Alert | -11 -10 -10 ------- Run | Yrd Mat Sub Maximum Alert Level . | . . . Low Security (%) 100 | 100 100 . Level 1 . | . . . Level 2 . | . . . Level 3 . | . . . Level 4 . | . . . Level 5 . | . . . High Security . | . . . Max Security . | . . . Peak Influence 118 | 10 118 . Initial . | . . . Average 34 | . 35 . Influence Increases 572 | 15 557 . Destroy 0b10 Robot/C 320 | . 320 . Destroy 0b10 Robot/NC 70 | 15 55 . Destroy Leader 68 | . 68 . Successful Hack 36 | . 36 . Select Force Hacks 30 | . 30 . Disable Machine 30 | . 30 . Destroy Structure 3 | . 3 . Lose Combat Pursuer 15 | . 15 . Influence Decreases 572 | 15 442 115 Entered New Map 56 | . . 56 Time Decay 486 | 15 442 29 Lost Part 30 | . . 30 Squads Dispatched 5 | . 5 . Investigation 4 | . 4 . Extermination . | . . . Reinforcement 1 | . 1 . Assault . | . . . Garrison . | . . . Intercept . | . . . Searches Triggered . | . . . Construction Impeded . | . . . Haulers Reinforced . | . . . Active Scanning Responses . | . . . Cargo Convoy Interrupts . | . . . Stealth | -11 -10 -10 --------- Run | Yrd Mat Sub Distress Signals . | . . . Communications Jammed . | . . . Distress Signals . | . . . Times Spotted 44 | . 37 7 Peak Tracking Total 4 | . 4 2 Tactical Retreats 1 | . 1 . Traps | -11 -10 -10 ------- Run | Yrd Mat Sub Traps Triggered 7 | . 7 . Indirectly . | . . . Trap Hack Attempts . | . . . Triggered . | . . . Disarmed . | . . . Reprogrammed . | . . . Reused . | . . . Traps Extracted . | . . . Installed . | . . . Triggered . | . . . Machines | -11 -10 -10 ---------- Run | Yrd Mat Sub Machines Disabled 2 | . 2 . Max in Single Turn 1 | . 1 . Machines Repaired . | . . . Machines Dismantled . | . . . Machines Sabotaged . | . . . Overloaded Fab Kills . | . . . Hacking | -11 -10 -10 --------- Run | Yrd Mat Sub Machines Accessed 8 | . 8 . Terminals 7 | . 7 . Fabricators . | . . . Repair Stations . | . . . Recycling Units 1 | . 1 . Scanalyzers . | . . . Garrison Access . | . . . Total Hacks 21 | . 21 . Successful 9 | . 9 . Failed 12 | . 12 . Catastrophic 1 | . 1 . Database Lockouts . | . . . Manual 21 | . 21 . Terminals 20 | . 20 . Fabricators . | . . . Repair Stations . | . . . Recycling Units 1 | . 1 . Scanalyzers . | . . . Garrison Access . | . . . Terminal Hacks . | . . . Fabricator Hacks . | . . . Repair Station Hacks . | . . . Recycling Unit Hacks . | . . . Scanalyzer . | . . . Garrison Access Hacks . | . . . Unauthorized Hacks 9 | . 9 . Terminals 8 | . 8 . Botnet 2 | . 2 . Skim 6 | . 6 . Fabricators . | . . . Repair Stations . | . . . Recycling Units 1 | . 1 . Tunnel 1 | . 1 . Scanalyzers . | . . . Garrison Access . | . . . Data Cores Recovered . | . . . Used . | . . . Hacking Detections 7 | . 7 . Full Trace Events 3 | . 3 . Feedback Events . | . . . Feedback Blocked . | . . . Robot Schematics Acquired . | . . . Robots Built . | . . . Authchips . | . . . Time . | . . . Total Robot Build Rating . | . . . Part Schematics Acquired . | . . . Parts Built . | . . . Authchips . | . . . Time . | . . . Total Part Build Rating . | . . . Part Studies Acquired . | . . . Parts Repaired . | . . . Time . | . . . Parts Recycled . | . . . Recycled Matter . | . . . Retrieved Matter . | . . . Retrieved Components . | . . . Parts Scanalyzed . | . . . Part Schematics Acquired . | . . . Parts Damaged . | . . . Bothacking | -11 -10 -10 ------------ Run | Yrd Mat Sub Used RIF Installer . | . . . Robots Hacked . | . . . Non-combat . | . . . Combat . | . . . Robot Hacks Applied . | . . . Relay Couplers Released . | . . . Fabnet Peak Effective % . | . . . Robots Rewired . | . . . Allies Hacked . | . . . Hacks Repelled . | . . . Allies | -11 -10 -10 -------- Run | Yrd Mat Sub Total Allies . | . . . Largest Group . | . . . Highest-Rated Group . | . . . Highest-Rated Ally . | . . . Total Orders . | . . . Ally Attacks . | . . . Total Damage . | . . . Kills . | . . . Allies Corrupted . | . . . Allies Melted . | . . . Intel | -11 -10 -10 ------- Run | Yrd Mat Sub Active Infowar (turns) 2843 | 48 2718 77 Seismic 2843 | 48 2718 77 Robot Analysis Total . | . . . Derelict Logs Recovered . | . . . Drone Launches . | . . . Drone Recoveries . | . . . Exploration | -11 -10 -10 ------------- Run | Yrd Mat Sub Turns Passed 3806 | 130 3120 556 Spaces Moved 1392 | 64 1042 286 Core 11 | 3 8 . Treads 1131 | 61 1034 36 Legs . | . . . Wheels 250 | . . 250 Hover . | . . . Flight . | . . . Fastest Speed 50 | 50 160 130 Average Speed 215 | 154 235 156 Slowest Speed 700 | 160 700 320 Overloaded Moves . | . . . Propulsion Burnouts . | . . . Robots Hopped . | . . . Potential Cave-ins . | . . . Cave-ins Triggered . | . . . Exploration Rate (%) 43 | 4 98 29 Regions Visited 2 Branch Regions 1 Pre-discovered Areas 1 | . 1 . Known Exits Taken . | . . . Unknown Exits Taken 2 | 1 1 . Scrap Searched . | . . . Spaces Dug . | . . . Terrain Destroyed . | . . . Melee . | . . . Projectile . | . . . AOE . | . . . Terrain Rammed . | . . . Walls Destroyed . | . . . Machines Disabled . | . . . Actions | -11 -10 -10 --------- Run | Yrd Mat Sub Total 1969 | 81 1537 351 Wait 413 | 2 383 28 Move 1390 | 63 1041 286 Hop . | . . . Pick Up 22 | 3 14 5 Fast Attach 16 | 7 6 3 Attach 4 | . 1 3 Detach . | . . . Swap 5 | 1 2 2 Drop 1 | . 1 . Fire 95 | 5 66 24 Melee . | . . . Ram 1 | . 1 . Kick . | . . . Crush 22 | . 22 . Escape Stasis . | . . . Rewire . | . . . Trap . | . . . Miscellaneous . | . . . Route ------- -11/Scrapyard -10/Materials (discovered 5 exits: [*Mat x3] / [*Min] / [*Sub]) -10/Subcaves History --------- Turn | Location | Event 14 | -11/Scrapyard | Discovered new exit (range 14) 131 | -11/Scrapyard | Entered Materials 309 | -10/Materials | Build established: Mutant 491 | -10/Materials | Discovered new exit (range 11) 850 | -10/Materials | Discovered new exit (range 4) 1279 | -10/Materials | Discovered new exit (range 12) 1801 | -10/Materials | Discovered new exit (range 16) 3237 | -10/Materials | Discovered new exit (range 8) 3251 | -10/Materials | Entered Subcaves 3252 | -10/Subcaves | Approached by a straggling Scientist 3263 | -10/Subcaves | Ambushed by Subdwellers from Twisted Machinery 3300 | -10/Subcaves | Lost 3 parts (1p2n) 3680 | -10/Subcaves | Build established: Scavenger-Mutant 3705 | -10/Subcaves | Ambushed by angry Subdweller bent on revenge 3706 | -10/Subcaves | Core integrity fell below 50% 3715 | -10/Subcaves | Core integrity fell below 20% 3807 | -10/Subcaves | Destroyed by IV-YAR(R) with Subdweller Beam Cannon Last Messages --------------- 03500_ 2PR=PLPHYJDYDVCE8E3GAIT:/Z 58YRJD 03507_ Acquired Sub. Monowheel. 03511_ Subatomizers dissect the Disposable Heat Sink. 03534_ System corrupted: Matter fused (-9). 03616_ System corrupted: Matter fused (-8). 03653_ S1X0MN1Q4LP=63S3YH,ISJTSH>GNTOX%V 03677_ %GE1R:IXL1SCG&JB6I=W 0OFO9Z DCKRBA 03682_ 9B-73X(u) builds Twisted Machinery. 03697_ 9B-73X(u) cries out in pain. 03697_ 9B-73X(u) destroyed. 03700_ Acquired 14 matter. 03702_ Acquired Lgt. Ion Engine. 03705_ LF-ZIW(R) angrily emerges from the Twisted Machinery. 03705_ LF-ZIW(R): "LEAVESUB!" 03714_ System corrupted: Component data lost. 03720_ Sub. Optics melted. 03720_ Sub. Monowheel melted. 03720_ LF-ZIW(R) destroyed. 03725_ Acquired 13 matter. 03775_ System corrupted: Heat flow error (+138). Map ----- +----------------------------------------------------+ | ?????????????????????????????????????????????????? | | ?????????????????????????????????????????????????? | | ?????????????????????????????????????????????????? | | ?????????????????????????????????????????????????? | | ?????????????????????????????????????????????????? | | ?????????????????????????????????????????????????? | | ?????????????????????????????????????????????????? | | ?????????????????????????????????????????????????? | | ?????????????????????????????????????????????????? | | ?????????????????????????????????????????????????? | | ?????????????????????????????????????????????????? | | ?????????????????????????????????????????????????? | | ?????????????????????????????????????????????????? | | ?????????????????????????????????????????????????? | | ?????????????????????????????????????????????????? | | ?????????????????????????????????????????????????? | | ???????????####???????????????? ?#???????????????? | | ???????????# #??????????????? ##??????????????? | | ???????????# #???????????????"" #??????????????? | | ???????????# #????##????????"""""#??????????????? | | ??????????## #????# ##??##?? "#???????????????? | | ??????????# #????? ### ?? #???????????????? | | ??????????# #??##?# ??? #????????????????? | | ??????????# ##?# ## ??? #?????????????????? | | ??????????## #?# ####R #??????????????????? | | ???????????# ### ##@R #???????????????????? | | ???????????## ## ##???????????????????? | | ????????????# #### #????????????????????? | | ????????????# #### ##????????????????????? | | ????????????# ## ## #?????????????????????? | | ???????????## ##### ##????#????????????????? | | ??????????## #???####### ????????????????? | | ????# ### ####### ???????????????? | | ????# ???????????????? | | ????## "???????????????? | | ?????### # "????????????????? | | ??????# # ###??????????????????? | | ??????# ### ## ##????????????????????? | | ??????# ??####### """"#??###????????????????? | | ??????##???????## " ##### #????????????????? | | ???????????????# " ## ###??????????????? | | ???????????????# """ ##????###??????? | | ???????????????# ##??## ##?????? | | ???????????????# ## ### =#### #?????? | | ???????????????### #####?## &="" #?????? | | ?????????????????## ??????#### "#% " #?????? | | ??????????????????# ?????????####### #?????? | | ?????????????????? ???????????????### ##?????? | | ?????????????????? ????????????????# ##??????? | | ?????????????????? ????????????????## ##?????? | +----------------------------------------------------+ Best States ------------- Heat Dissipation 25 Energy Generation 15 Energy Capacity 250 Matter Stores 300 Matter Capacity 300 Sight Range 16 Terrain Scan Density 10 Evasion (%) 40 Recoil Reduction 2 Item Schematics ----------------- None Robot Schematics ------------------ None Fabricated ------------ Nothing Repaired ---------- Nothing Studied --------- None Alien Tech Used ----------------- None Achievements -------------- None Challenges ------------ None Game ------ Seed WarpInterceptNanoactuators Manual? 0 Play Time 00:13:30 Cumulative 167.3 hours Start 2026.02.01 @ 05:57:10 End 2026.02.01 @ 06:08:28 Sessions 1 Manual Loads 0 Difficulty Rogue Special Mode None Game No. 197 Rogue 192 Adventurer 5 Explorer 0 Win Type - Total 5 Types 4/0/0/1/0/0/0/0/0/0 Lore% 48 Gallery% 63 Achievement% 50 Wizard Run 0 Options --------- Layout 0 ASCII 0 Keyboard 0 Movement Vi Keybinds 0 Fullscreen 1 Font 24/Terminus Map View 76x50 Zoom Use 1% Tactical HUD 1 Map Filters NONE Filters NONE Steam 1 RUN: 3e0273da-684d-4d35-9e18-9a3b5286131f